bitfinex-derivatives/quotes_ETHF0:USTF0_20251116
["timestamp","ask_amount","ask_price","bid_price","bid_amount"]
[1763326489848,2.11642771,3097.0,3096.0,1.5321967]
[1763326489849,1.25362494,3097.0,3096.9,0.247]
[1763326490239,9.8188,3097.1,3096.5,3.3468]
[1763326490240,9.8188,3097.1,3097.0,0.386]
[1763326490549,6.611,3097.1,3097.0,0.386]
[1763326490745,6.8489,3097.1,3097.0,0.139]
[1763326491047,0.2379,3096.3,3096.2,1.1594851]
[1763326491242,0.2379,3096.2,3096.1,0.247]
[1763326492139,0.2379,3096.1,3096.0,3.5955]
[1763326492443,0.2379,3096.1,3096.0,3.59892113]
[1763326492637,1.49152494,3096.3,3096.2,0.247]
[1763326493036,0.2379,3096.1,3096.0,3.59892113]
[1763326496149,18.7628,3096.6,3096.2,0.247]
[1763326496349,1.25362494,3096.3,3096.2,0.247]
[1763326497145,18.8708,3096.6,3096.5,0.386]
[1763326497447,19.1087,3096.6,3096.0,3.35192113]
[1763326497649,19.1087,3096.6,3096.5,0.386]
[1763326498542,18.8708,3096.6,3096.5,0.386]
[1763326498947,3.2078,3096.6,3096.5,0.386]
[1763326499550,4.46142494,3097.0,3096.9,0.247]
[1763326499851,4.69932494,3097.0,3096.5,3.3468]
[1763326500252,3.4457,3097.0,3096.9,0.247]
[1763326500453,4.69932494,3097.0,3096.9,0.247]
[1763326501967,4.69932494,3097.0,3096.5,0.139]
[1763326502256,1.49152494,3096.7,3096.6,0.247]
[1763326503859,0.2379,3096.6,3096.5,0.139]
[1763326504066,0.2379,3096.6,3096.5,0.386]
[1763326506660,0.2379,3096.6,3096.0,1.30360623]
[1763326506863,1.49152494,3096.1,3096.0,0.14412113]
[1763326507364,1.49152494,3096.1,3096.0,0.39112113]
[1763326507563,1.49152494,3096.1,3096.0,0.38942113]
[1763326507766,1.49152494,3096.1,3096.0,0.00342113]
[1763326507966,2.74514988,3096.1,3096.0,0.00342113]
[1763326508864,1.49152494,3096.1,3096.0,0.00342113]
[1763326510159,17.15152494,3096.1,3096.0,0.00342113]
[1763326510763,16.91362494,3096.1,3096.0,0.38942113]
[1763326511267,17.15152494,3096.1,3096.0,0.38942113]
[1763326512466,16.91362494,3096.1,3096.0,0.38942113]
[1763326512768,1.25362494,3096.1,3096.0,0.38942113]
[1763326512966,4.69932494,3096.1,3096.0,0.38942113]
[1763326517976,1.25362494,3096.1,3096.0,0.38942113]
[1763326518874,1.48432494,3096.1,3096.0,0.00342113]
[1763326519271,2.73794988,3096.1,3096.0,0.00342113]
[1763326519473,0.2347,3095.4,3095.3,1.1594851]
[1763326519677,0.0814,3095.4,3095.3,2.5337814]
[1763326520075,4.46142494,3095.7,3095.5,0.1475]
[1763326520276,1.25362494,3095.7,3095.6,0.2287]
[1763326520583,1.25362494,3095.7,3095.6,0.23227532]
[1763326521176,1.33987091,3096.0,3095.9,0.2287]
[1763326526079,0.0814,3095.7,3095.6,1.14917162]
[1763326526382,1.33502494,3095.7,3095.6,1.14917162]
[1763326526584,1.33502494,3095.7,3095.6,1.37787162]
[1763326530580,1.33502494,3095.7,3095.6,0.23227532]
[1763326533383,0.00484597,3096.0,3095.9,0.2287]
[1763326534387,1.25847091,3096.0,3095.9,0.2287]
[1763326534585,1.33987091,3096.0,3095.9,0.2287]
[1763326538492,0.0814,3095.9,3095.8,1.1594851]
[1763326538790,1.25847091,3096.0,3095.6,1.74757299]
[1763326538791,0.0814,3095.8,3095.7,1.3881851]
[1763326538988,1.25847091,3096.0,3095.7,1.3881851]
[1763326539293,1.25847091,3096.0,3095.9,0.2287]
[1763326539895,2.51209585,3096.0,3095.6,1.16306042]
[1763326540096,1.25362494,3095.7,3095.6,0.00357532]
[1763326544802,1.25379366,3095.7,3095.6,0.00357532]
[1763326547301,4.46159366,3095.7,3095.6,0.00357532]
[1763326548403,4.21032503,3095.7,3095.6,0.00357532]
[1763326554706,4.21292503,3095.7,3095.6,0.00357532]
[1763326555307,1.00512503,3095.7,3095.6,0.00357532]
[1763326559107,2.15147641,3095.7,3095.0,0.3914]
[1763326559298,1.25379366,3095.4,3095.0,0.1501]
[1763326559497,16.91179366,3095.4,3095.0,0.1501]
[1763326559904,16.91179366,3095.4,3095.0,0.15355199]
[1763326560707,2.11727234,3095.6,3095.5,0.1501]
[1763326560906,17.77627234,3095.6,3095.5,0.1501]
[1763326561210,17.77627234,3095.6,3095.0,0.15355199]
[1763326561408,1.25379366,3095.1,3095.0,0.15355199]
[1763326561614,16.91179366,3095.1,3095.0,0.15355199]
[1763326565109,16.91179366,3095.1,3095.0,0.00345199]
[1763326566716,16.91179366,3095.1,3095.0,0.15355199]
[1763326568813,15.659,3095.1,3095.0,0.39485199]
[1763326570220,0.86347868,3095.7,3095.6,0.2413]
[1763326570422,15.659,3095.7,3095.6,0.2413]
[1763326571919,15.659,3095.7,3095.5,0.3914]
[1763326573521,0.00484597,3096.0,3095.9,0.2413]
[1763326576227,0.00484597,3096.0,3095.6,3.2078]
[1763326576722,0.00484597,3096.0,3095.6,3.4439]
[1763326578821,1.25379366,3095.8,3095.6,3.2078]
[1763326579020,16.91079366,3095.8,3095.6,3.2078]
[1763326579423,20.11859366,3095.8,3095.5,0.4034]
[1763326579928,20.11859366,3095.8,3095.3,1.1455963]
[1763326580121,1.25379366,3095.4,3095.3,1.1455963]
[1763326580336,1.25379366,3095.4,3095.3,1.3988963]
[1763326583425,1.25379366,3095.4,3095.3,0.2533]
[1763326585030,15.657,3095.5,3095.4,0.2533]
[1763326585231,2.12211831,3096.0,3095.9,0.2533]
[1763326585426,17.77811831,3096.0,3095.9,0.2533]
[1763326585931,17.77811831,3096.0,3095.5,0.148]
[1763326588333,16.91463963,3096.0,3095.5,0.148]
[1763326588532,16.91463963,3096.0,3095.9,0.2533]
[1763326588734,15.66084597,3096.0,3095.9,0.2533]
[1763326589636,15.66084597,3096.0,3095.9,3.4611]
[1763326589831,0.86347868,3096.7,3096.6,0.2533]
[1763326590037,3.2078,3097.0,3096.9,0.2533]
[1763326591434,0.0014,3096.7,3096.6,0.00484597]
[1763326591829,0.0014,3096.7,3096.6,0.25814597]
[1763326592030,1.25519366,3096.8,3096.7,0.2533]
[1763326592633,1.25379366,3096.8,3096.7,0.2533]
[1763326592839,18.8628,3097.0,3096.9,0.2533]
[1763326593834,18.8642,3097.0,3096.9,0.2533]
[1763326594038,0.0014,3096.7,3096.6,0.25814597]
[1763326594540,18.8628,3097.0,3096.7,0.2533]
[1763326594835,18.8642,3097.0,3096.6,0.00484597]
[1763326595547,18.8642,3097.0,3096.9,0.2533]
[1763326597447,0.0014,3096.7,3096.6,0.00484597]
[1763326597648,1.25519366,3096.7,3096.6,0.00484597]
[1763326597845,16.90719366,3096.7,3096.6,0.00484597]
[1763326599853,20.11499366,3096.7,3096.6,0.00484597]
[1763326604261,3.2078,3096.7,3096.6,0.00484597]
[1763326604559,20.11299366,3096.7,3096.6,0.00484597]
[1763326604743,20.11222311,3096.7,3096.6,0.00484597]
[1763326605946,16.90442311,3096.7,3096.6,0.00484597]
[1763326606148,20.11222311,3096.7,3096.6,0.00484597]
[1763326612153,20.11222311,3096.7,3096.0,3.3558]
[1763326612359,2.50604622,3096.1,3095.6,3.2078]
[1763326612565,1.25302311,3095.8,3095.6,3.4559]
[1763326612762,15.649,3095.7,3095.6,3.2078]
[1763326616058,15.649,3095.7,3095.3,0.00484597]
[1763326617263,15.649,3095.7,3095.5,0.3961]
[1763326617561,15.649,3095.7,3095.6,0.2481]
[1763326620463,1.25302311,3095.8,3095.6,0.2481]
[1763326620665,15.65,3095.7,3095.5,0.148]
[1763326621066,15.65,3095.7,3095.5,0.3961]
[1763326621567,15.65,3095.7,3095.6,0.2481]
[1763326623171,15.65,3096.0,3095.9,0.2481]
[1763326623573,15.65,3096.0,3095.5,0.148]
[1763326623766,1.25302311,3095.8,3095.5,0.148]
[1763326623971,1.25302311,3095.8,3095.7,0.2481]
[1763326626070,1.25302311,3095.8,3095.5,0.148]
[1763326626265,1.25302311,3095.8,3095.7,0.2481]
[1763326627274,1.25302311,3095.8,3095.5,0.148]
[1763326627476,15.65,3095.7,3095.5,0.148]
[1763326628773,15.65,3095.7,3095.5,0.3961]
[1763326631173,15.65,3095.7,3095.6,0.2481]
[1763326637483,15.65,3095.7,3095.6,0.2328]
[1763326639574,15.65,3095.7,3095.5,1.3088541]
[1763326639775,1.25302311,3095.6,3095.5,1.3088541]
[1763326639977,1.25302311,3095.6,3095.5,0.3955]
[1763326640482,1.25302311,3095.6,3095.5,1.5563541]
[1763326640672,1.25302311,3095.6,3095.5,1.3088541]
[1763326640871,1.25302311,3095.6,3095.5,0.148]
[1763326641485,1.25302311,3095.6,3095.5,1.3088541]
[1763326642676,1.25302311,3095.6,3095.5,0.148]
[1763326643183,1.25302311,3095.6,3095.5,0.3955]
[1763326643580,0.86347868,3095.8,3095.7,0.2475]
[1763326643783,4.60535138,3096.9,3096.8,0.2475]
[1763326643977,3.4564,3096.9,3096.8,0.2475]
[1763326644184,0.2486,3096.7,3096.6,1.41033852]
[1763326644383,0.2486,3096.7,3096.6,0.2475]
[1763326646189,1.50162311,3096.7,3096.6,0.2475]
[1763326646686,0.2486,3096.6,3096.5,0.3945]
[1763326646884,0.2486,3096.6,3096.5,0.147]
[1763326647393,0.2486,3096.6,3096.5,0.3945]
[1763326649196,1.50162311,3096.8,3096.7,0.2475]
[1763326649588,0.2486,3096.6,3096.5,0.3945]
[1763326650890,0.2486,3096.5,3096.4,3.2078]
[1763326651096,1.50162311,3096.5,3096.4,3.2078]
[1763326651404,0.2486,3096.5,3096.4,3.2078]
[1763326651603,0.2486,3096.5,3096.4,3.4553]
[1763326652706,0.2486,3096.5,3096.4,3.2078]
[1763326653504,0.2486,3096.1,3096.0,4.76513852]
[1763326653705,0.2486,3096.1,3096.0,4.37063852]
[1763326653907,0.2486,3096.1,3096.0,3.2078]
[1763326654708,0.2486,3096.1,3096.0,3.6023]
[1763326655009,16.89802311,3096.5,3096.0,3.6023]
[1763326655601,0.2486,3096.1,3096.0,3.6023]
[1763326659106,0.2486,3096.1,3096.0,0.3945]
[1763326667818,1.25303527,3096.4,3096.0,0.3945]
[1763326669715,1.49013527,3096.4,3096.3,0.229]
[1763326669918,0.2371,3096.4,3096.3,0.229]
[1763326671419,15.645,3096.5,3096.4,0.229]
[1763326671820,4.69793527,3097.0,3096.9,0.229]
[1763326672021,3.2078,3097.0,3096.9,0.229]
[1763326672420,0.00413762,3097.1,3097.0,0.3704]
[1763326674018,0.24123762,3097.1,3096.9,1.16283852]
[1763326674219,0.2371,3096.5,3096.4,3.2078]
[1763326674424,1.49013527,3096.5,3096.4,3.2078]
[1763326675116,15.642,3097.0,3096.5,0.1414]
[1763326675317,0.2371,3096.6,3096.5,0.3704]
[1763326677722,1.49013527,3096.8,3096.7,0.229]
[1763326682930,1.49013527,3096.8,3096.4,3.2078]
[1763326682931,0.2371,3096.5,3096.4,3.2078]
[1763326683122,0.2371,3096.5,3096.0,5.09905778]
[1763326683322,0.2371,3096.5,3096.0,6.24465408]
[1763326683717,0.2371,3096.1,3096.0,3.5838]
[1763326684225,0.2371,3096.1,3096.0,0.376]
[1763326684823,0.2371,3096.1,3095.7,1.74425778]
[1763326685020,0.2371,3095.8,3095.7,0.229]
[1763326685527,1.25303527,3096.2,3095.7,0.229]
[1763326690635,4.46083527,3096.2,3095.7,0.229]
[1763326692536,0.2371,3095.8,3095.7,0.229]
[1763326694430,0.2371,3095.7,3095.4,4.95205778]
[1763326694635,1.25303527,3095.9,3095.4,3.2078]
[1763326694636,0.2371,3095.5,3095.4,3.2078]
[1763326695837,0.2371,3095.5,3095.4,3.4368]
[1763326697930,0.2371,3095.5,3095.4,3.2078]
[1763326698141,0.2522,3095.4,3095.3,0.00484597]
[1763326698937,0.2486,3095.1,3095.0,0.00345199]
[1763326699138,1.50163527,3095.1,3095.0,0.00345199]
[1763326703042,4.70943527,3095.4,3095.3,0.2449]
[1763326703243,0.2486,3095.1,3095.0,0.39485199]
[1763326703539,0.2486,3095.1,3095.0,0.00345199]
[1763326703935,0.2486,3095.1,3095.0,0.39485199]
[1763326707937,0.00484597,3095.7,3095.6,0.2449]
[1763326708137,0.2486,3095.3,3095.2,4.61024606]
[1763326708344,0.2486,3095.3,3095.2,3.2078]
[1763326708547,0.2486,3095.3,3095.2,0.2449]
[1763326709541,0.2486,3095.1,3095.0,0.39485199]
[1763326709751,1.50163527,3095.1,3095.0,0.00345199]
[1763326712545,0.2486,3095.1,3095.0,0.39485199]
[1763326713147,1.50163527,3095.4,3095.3,0.2449]
[1763326713352,0.2486,3095.4,3095.3,0.2449]
[1763326714254,0.2486,3095.4,3095.0,0.14995199]
[1763326714749,0.2486,3095.4,3095.3,0.2449]
[1763326715360,0.2486,3095.4,3095.0,0.14995199]
[1763326715957,0.2486,3095.1,3095.0,0.39485199]
[1763326717467,0.2486,3095.1,3095.0,0.14995199]
[1763326717771,0.2486,3095.1,3095.0,0.39485199]
[1763326719468,0.2486,3095.1,3095.0,0.00345199]
[1763326719669,1.50163527,3095.1,3095.0,0.00345199]
[1763326721367,0.2486,3095.1,3095.0,0.39485199]
[1763326722470,1.50163527,3095.1,3095.0,0.00345199]
[1763326726770,1.50278029,3095.1,3095.0,0.00345199]
[1763326727170,2.75696058,3095.1,3095.0,0.00345199]
[1763326728680,0.2483,3094.2,3094.1,1.15754606]
[1763326728879,1.50248029,3094.2,3094.1,1.15754606]
[1763326729081,1.50248029,3094.2,3094.1,1.4046568]
[1763326729280,1.25418029,3094.5,3094.1,1.4046568]
[1763326729480,1.25829535,3094.5,3094.1,1.40699857]
[1763326730881,1.50659535,3094.5,3094.4,0.2429]
[1763326731270,1.50659535,3094.5,3094.1,1.16409857]
[1763326732782,1.50659535,3094.5,3094.1,2.30969487]
[1763326733179,1.50659535,3094.5,3094.1,5.51749487]
[1763326733986,1.50659535,3094.5,3094.4,0.2429]
[1763326737990,0.00411506,3094.5,3094.4,0.2429]
[1763326738493,0.25241506,3094.5,3094.4,0.2429]
[1763326739795,0.2483,3094.2,3094.1,5.76039487]
[1763326740690,0.2483,3094.2,3094.1,4.35573807]
[1763326741791,0.2483,3094.2,3094.1,4.59863807]
[1763326743083,1.25418029,3094.3,3094.1,4.35573807]
[1763326743289,0.00411506,3094.5,3094.4,0.2429]
[1763326745493,0.25241506,3094.5,3094.4,0.2429]
[1763326747291,0.00411506,3094.5,3094.4,0.2429]
[1763326750904,0.25241506,3094.5,3094.4,0.2429]
[1763326751101,0.00411506,3094.5,3094.3,4.3695568]
[1763326751301,0.2483,3094.4,3094.3,4.3695568]
[1763326751502,0.2483,3094.4,3094.3,3.2078]
[1763326751699,0.2483,3094.4,3094.3,3.4507]
[1763326755106,0.2483,3094.4,3094.3,4.6124568]
[1763326758798,0.2483,3094.4,3094.3,4.6221568]
[1763326759707,0.2483,3094.4,3094.3,1.4143568]
[1763326761106,0.25341506,3094.5,3094.4,0.2526]
[1763326763413,0.25341506,3094.5,3094.4,1.4143568]
[1763326763414,0.00411506,3094.5,3094.4,1.4143568]
[1763326763713,0.00411506,3094.5,3094.4,0.2526]
[1763326764294,0.25341506,3094.5,3094.4,0.2526]
[1763326764500,0.25341506,3094.5,3094.4,1.4159893]
[1763326764700,0.25341506,3094.5,3094.4,0.2526]
[1763326768210,0.00411506,3094.5,3094.4,0.2526]
[1763326771705,0.00411506,3094.5,3094.4,3.4604]
[1763326772303,0.38531506,3094.5,3094.4,3.2078]
[1763326772512,0.2493,3093.8,3093.7,2.32572012]
[1763326772712,0.2493,3093.5,3093.4,1.16302191]
[1763326772904,0.2493,3093.3,3093.2,0.2526]
[1763326773110,1.25418029,3093.5,3093.2,1.41569064]
[1763326773317,0.1497,3093.3,3093.2,0.2526]
[1763326773614,0.1497,3093.3,3093.2,0.25672177]
[1763326775611,2.12458953,3094.1,3094.0,0.3905]
[1763326775817,1.25902626,3094.1,3094.0,0.3905]
[1763326776218,1.40872626,3094.1,3094.0,0.3905]
[1763326780129,1.40872626,3094.1,3094.0,0.1379]
[1763326781724,0.1497,3093.6,3093.4,3.2078]
[1763326781925,0.1497,3093.6,312.22,1.01730192]
[1763326781926,0.1497,3093.2,3093.1,0.72419789]
[1763326782239,1.25418029,3093.1,3093.0,0.3905]
[1763326782621,1.40388029,3093.1,3093.0,0.3905]
[1763326782819,3.2078,3093.2,3093.1,0.2526]
[1763326783021,1.25418029,3093.4,3093.3,0.2526]
[1763326783223,1.25418029,3093.4,3093.3,0.25536378]
[1763326783421,3.2078,3093.6,3093.3,0.25536378]
[1763326783618,3.2078,3093.6,3093.5,0.3905]
[1763326783817,3.3575,3093.6,3093.5,0.3905]
[1763326784022,0.1497,3093.0,3092.5,3.3501]
[1763326784222,1.40118029,3092.8,3092.7,0.2526]
[1763326785129,1.40118029,3092.8,3092.7,0.25636684]
[1763326786232,1.40118029,3092.8,3092.7,0.00376684]
[1763326786732,1.40118029,3092.8,3091.5,60.95807253]
[1763326786733,0.147,3091.6,3091.5,60.95807253]
[1763326786927,4.60898029,3091.6,3091.5,60.69666092]
[1763326787127,0.147,3091.1,3090.5,3.3457]
[1763326787333,1.40118029,3091.1,3090.5,3.3457]
[1763326787525,1.25418029,3090.7,3090.6,0.2526]
[1763326788834,3.21009957,3091.1,3090.6,0.2526]
[1763326789127,3.21009957,3091.1,3090.5,3.21018866]
[1763326789128,0.147,3090.7,3090.5,3.21018866]
[1763326789329,18.04782697,3090.6,3090.5,0.00238866]
[1763326790333,24.04782697,3090.6,3090.5,0.00238866]
[1763326790721,18.04782697,3090.6,3090.5,0.00238866]
[1763326799641,3.3679,3090.7,3090.6,0.2325]
[1763326799939,15.8211,3090.6,3090.5,0.15358866]
[1763326800541,3.2078,3090.7,3090.6,0.2325]
[1763326800740,18.8698,3090.7,3090.6,0.2325]
[1763326801945,3.21009957,3091.1,3091.0,0.3837]
[1763326803543,0.00229957,3091.1,3091.0,0.3837]
[1763326803747,0.00484597,3091.9,3091.8,0.2325]
[1763326804937,0.00719204,3091.9,3091.8,0.2325]
[1763326806746,0.1601,3091.6,3091.0,0.1512]
[1763326807053,3.3679,3091.6,3091.0,0.1512]
[1763326807350,0.1601,3091.1,3091.0,0.3837]
[1763326808444,5.44752697,3091.6,3091.0,0.3837]
[1763326809446,0.1601,3090.9,3090.5,0.15358866]
[1763326809647,0.1601,3090.6,3090.5,0.00238866]
[1763326810043,0.1601,3090.0,3089.5,3.359]
[1763326810244,3.3655,3089.6,3089.5,0.1512]
[1763326810651,3.2078,3089.6,3089.5,0.3837]
[1763326810842,3.2078,3090.0,3089.9,0.2325]
[1763326811045,3.2115781,3090.0,3089.9,0.23632993]
[1763326811253,0.0037781,3090.0,3089.9,0.23632993]
[1763326812154,0.1614781,3090.0,3089.9,0.00382993]
[1763326812351,3.3692781,3090.0,3089.9,0.00382993]
[1763326812960,3.2115781,3090.0,3089.9,0.23632993]
[1763326813267,18.9045781,3090.0,3089.3,0.2325]
[1763326813550,3.2115781,3090.0,3089.8,0.2325]
[1763326814143,3.2115781,3090.0,3089.9,0.2325]
[1763326814343,4.10502097,3090.0,3089.9,0.2363725]
[1763326814549,0.1539,3089.1,3089.0,0.1512]
[1763326814750,0.1539,3088.8,3088.1,3.2078]
[1763326814941,3.2078,3088.9,3088.7,0.2648766]
[1763326815643,3.2078,3088.9,3088.7,0.26901644]
[1763326815841,3.2078,3088.9,3088.8,0.2325]
[1763326816042,3.38574999,3089.6,3088.8,0.2325]
[1763326816043,0.0048539,3090.1,3089.9,0.2522]
[1763326816252,12.75540258,3090.1,3089.9,0.2522]
[1763326816452,12.75540258,3090.1,3089.0,0.1415]
[1763326816453,1.12282678,3090.0,3089.0,3.3493]
[1763326816948,0.85766556,3090.8,3090.7,0.2522]
[1763326817145,4.06546556,3091.0,3090.9,0.2522]
[1763326817353,0.85766556,3091.4,3091.3,0.2522]
[1763326817546,15.9703,3091.4,3091.0,0.1415]
[1763326817744,0.73786595,3091.3,3091.0,0.1415]
[1763326817943,0.74143336,3091.3,3091.2,0.2522]
[1763326818641,0.74143336,3091.3,3091.0,0.00370961]
[1763326819354,0.0048539,3091.5,3091.4,0.2415]
[1763326819549,4.06546556,3092.4,3092.3,0.2415]
[1763326819853,14.993,3093.0,3092.9,0.2415]
[1763326820042,15.2355,3093.0,3092.3,3.2078]
[1763326820371,0.2425,3092.4,3092.3,3.2078]
[1763326820547,15.768,3092.4,3092.3,3.4493]
[1763326821455,15.768,3092.4,3092.3,3.2078]
[1763326821652,15.767,3092.4,3092.3,3.4493]
[1763326822348,0.0048539,3092.7,3092.6,0.2415]
[1763326825452,0.00411202,3093.0,3092.9,0.2415]
[1763326825655,3.2078,3093.7,3093.6,0.2415]
[1763326825855,3.2078,3094.6,3094.1,0.2415]
[1763326826058,3.2078,3094.6,3094.2,3.2078]
[1763326826259,3.2078,3094.6,3094.0,3.2792]
[1763326826556,3.21559286,3094.6,3094.0,3.2840539]
[1763326826750,3.21559286,3094.6,3094.0,3.2877101]
[1763326827349,3.21559286,3094.6,3094.5,0.2415]
[1763326827653,3.3558,3095.5,3094.9,0.2415]
[1763326827855,12.246,3095.4,3094.9,0.2415]
[1763326828553,12.246,3095.4,3094.8,3.2078]
[1763326828759,12.25340599,3095.4,3094.8,3.2078]
[1763326829758,2.75672614,3095.5,3095.4,0.3129]
[1763326829955,3.2078,3096.7,3095.8,0.2415]
[1763326830165,0.148,3096.6,3095.8,3.4493]
[1763326830456,0.2425,3095.9,3095.3,3.2078]
[1763326830851,0.25039469,3095.9,3095.3,3.21264582]
[1763326831854,0.00789469,3095.9,3095.4,0.1427]
[1763326832056,0.148,3096.6,3095.4,0.1427]
[1763326832057,3.3558,3096.6,3096.0,0.2415]
[1763326832458,3.3558,3096.6,3096.0,0.3314]
[1763326832459,3.2078,3096.6,3096.0,0.3314]
[1763326833259,3.2078,3096.2,3096.0,0.2415]
[1763326833556,0.2425,3096.1,3095.4,3.3505]
[1763326833748,0.2425,3095.5,3095.4,3.2078]
[1763326834557,0.148,3096.0,3095.4,3.2078]
[1763326834956,0.148,3096.0,3095.3,0.00484582]
[1763326836056,0.3905,3095.4,3095.3,0.00484582]
[1763326836255,13.7015,3095.4,3095.3,0.00484582]
[1763326837769,13.7015,3095.4,3095.3,4.582e-05]
[1763326838665,19.7015,3095.4,3095.3,4.582e-05]
[1763326839861,19.7015,3095.4,3094.2,3.2078]
[1763326840062,3.2078,3094.9,3094.2,3.2078]
[1763326840260,0.148,3094.8,3094.2,3.2078]
[1763326840462,15.777,3094.7,3094.2,3.2078]
[1763326840958,0.24734582,3094.8,3094.6,3.2078]
[1763326841166,0.2425,3094.7,3094.6,3.2078]
[1763326841362,0.2425,3094.7,3094.2,3.3025]
[1763326841564,0.2425,3094.7,3094.2,3.2078]
[1763326842361,0.2425,3094.3,3094.2,3.2078]
[1763326842561,0.24501205,3094.3,3094.2,3.2078]
[1763326842763,0.00251205,3094.3,3094.2,3.4493]
[1763326842956,0.00484582,3094.8,3094.2,3.2078]
[1763326843162,0.24734582,3094.8,3094.2,3.2078]
[1763326844061,12.57886066,3094.8,3094.2,3.2078]
[1763326844667,16.02786066,3094.8,3094.2,3.2078]
[1763326848960,0.24986066,3094.8,3094.7,0.2415]
[1763326849164,16.01986066,3094.8,3094.7,0.2415]
[1763326849467,16.75173341,3094.8,3094.7,0.2415]
[1763326851166,16.50923341,3094.8,3094.7,0.2415]
[1763326851369,16.74903341,3094.8,3094.2,3.2078]
[1763326851571,0.73187275,3094.7,3094.6,0.232]
[1763326851771,0.00736066,3094.8,3094.7,0.232]
[1763326852675,3.2078,3095.3,3094.7,0.232]
[1763326852676,3.2078,3095.3,3095.2,0.232]
[1763326852878,3.2078,3095.3,3095.0,3.2078]
[1763326852879,0.73378509,3095.3,3095.0,3.2078]
[1763326853081,2.02105198,3095.5,3095.0,3.4398]
[1763326853284,12.97723055,3095.4,3095.3,0.232]
[1763326853674,12.98125409,3095.4,3095.3,0.232]
[1763326853885,0.00402354,3095.4,3095.3,0.232]
[1763326854575,0.24382354,3095.4,3095.0,3.3534]
[1763326854781,0.24382354,3095.4,3095.0,3.2078]
[1763326855176,0.00402354,3095.4,3095.3,0.232]
[1763326855483,0.97893577,3095.4,3095.3,0.232]
[1763326855684,0.24382354,3095.4,3095.0,3.3534]
[1763326855881,0.97893577,3095.4,3095.3,0.232]
[1763326856180,0.73913577,3095.4,3095.3,0.232]
[1763326856374,0.97893577,3095.4,3095.0,3.3534]
[1763326857480,0.97893577,3095.4,3095.3,0.232]
[1763326857675,0.97893577,3095.4,3095.0,3.2078]
[1763326858080,0.2398,3095.1,3095.0,3.2078]
[1763326858786,0.73511223,3095.3,3095.0,3.4398]
[1763326859175,0.73511223,3095.3,3095.0,3.2078]
[1763326859176,0.2398,3095.1,3095.0,3.2078]
[1763326859786,0.2398,3094.7,3094.6,3.2078]
[1763326859986,16.0048,3094.7,3094.6,3.4398]
[1763326860181,16.73991223,3094.7,3094.6,3.4398]
[1763326860579,16.73891223,3094.7,3094.6,3.2078]
[1763326865290,16.73891223,3094.7,3094.1,3.21264582]
[1763326865501,0.1395,3094.5,3094.1,3.21264582]
[1763326865698,0.73511223,3094.4,3094.3,0.232]
[1763326865889,1.14602302,3095.1,3095.0,0.232]
[1763326866094,1.14602302,3095.1,3094.3,3.2078]
[1763326866095,0.1395,3095.0,3094.3,3.2078]
[1763326866294,0.73610177,3094.9,3094.3,3.2078]
[1763326866493,0.73610177,3094.8,3094.3,3.2078]
[1763326866690,0.73610177,3094.7,3094.3,3.2078]
[1763326866896,0.2398,3094.4,3094.3,3.2078]
[1763326867308,0.97590177,3094.4,3094.3,3.2078]
[1763326867594,0.2398,3094.2,3094.1,0.00484582]
[1763326867794,0.97590177,3094.2,3094.1,0.00484582]
[1763326869702,2.12192479,3094.2,3094.1,0.00484582]
[1763326869902,8.12192479,3094.2,3094.1,0.00484582]
[1763326870202,0.1395,3093.5,3093.4,3.2078]
[1763326870507,0.2398,3093.0,3092.9,3.2078]
[1763326870693,0.3793,3093.0,3092.9,3.4398]
[1763326870897,16.1383,3093.0,3092.9,3.2078]
[1763326871097,16.87324141,3093.0,3092.9,3.2078]
[1763326871300,16.87598009,3093.0,3092.9,0.00308519]
[1763326871599,0.2398,3092.7,3092.6,0.00484582]
[1763326871804,2.12135198,3092.7,3092.6,0.00484582]
[1763326872105,2.85554579,3092.7,3092.6,0.00484582]
[1763326872700,2.85554579,3092.7,3092.6,0.00724891]
[1763326873103,0.2398,3092.2,3092.1,3.2078]
[1763326873303,16.0018,3092.2,3092.1,3.2078]
[1763326874005,16.0018,3092.2,3092.1,3.21122047]
[1763326875199,15.762,3092.2,3092.1,3.44322047]
[1763326875397,0.1395,3092.5,3092.1,3.44322047]
[1763326875600,7.471,3092.4,3092.1,3.44322047]
[1763326875797,0.2398,3092.2,3092.1,0.00342047]
[1763326877504,3.35078628,3093.0,3092.9,0.2356]
[1763326877702,0.3823,3092.5,3092.1,0.00342047]
[1763326877911,0.2369,3092.2,3092.1,0.00342047]
[1763326878613,0.2369,3092.2,3092.1,0.23902047]
[1763326878815,20.33925198,3092.2,3092.1,0.00342047]
[1763326879201,17.13145198,3092.2,3092.1,0.00342047]
[1763326879602,0.1454,3092.5,3092.1,0.25362047]
[1763326879905,15.9084,3092.5,3092.1,0.25362047]
[1763326880107,0.2288,3092.2,3092.1,0.25362047]
[1763326880305,0.2288,3092.2,3092.1,0.00342047]
[1763326881217,15.9084,3092.5,3092.1,0.25362047]
[1763326881605,0.2288,3092.2,3092.1,0.00342047]
[1763326882313,15.9084,3092.5,3092.1,0.25362047]
[1763326883115,0.2288,3092.3,3092.2,3.2078]
[1763326883508,0.2288,3092.3,3092.2,3.458]
[1763326884017,0.2288,3092.3,3092.2,3.2078]
[1763326884210,0.2288,3092.3,3092.2,3.458]
[1763326885911,16.1345,3092.5,3092.4,0.2502]
[1763326887016,16.1345,3092.5,3092.2,3.2078]
[1763326887416,0.2288,3092.3,3092.2,3.458]
[1763326887720,0.2288,3092.3,3092.2,3.2078]
[1763326888021,0.2288,3092.3,3092.2,3.458]
[1763326888821,0.00348628,3093.0,3092.9,0.2502]
[1763326889013,0.00348628,3093.0,3092.7,3.2078]
[1763326889014,0.2288,3092.8,3092.7,3.2078]
[1763326889719,15.77048628,3093.0,3092.9,0.2502]
[1763326890014,16.13798628,3093.0,3092.7,3.2078]
[1763326890319,0.2288,3092.8,3092.7,3.2078]
[1763326890617,0.2288,3092.8,3092.7,3.458]